bitfinex/quotes_BTCUSD_20260125
["timestamp","ask_amount","ask_price","bid_price","bid_amount"]
[1769303253486,0.03,89244.0,89231.0,0.63556302]
[1769303253693,0.03,89242.0,89231.0,0.63556302]
[1769303254069,0.03,89240.0,89231.0,0.63556302]
[1769303254277,0.03,89238.0,89231.0,0.63556302]
[1769303254497,0.00903883,89245.0,89231.0,0.3080215]
[1769303254498,0.03,89236.0,89231.0,0.3080215]
[1769303254792,0.03,89234.0,89232.0,0.33185529]
[1769303254990,0.04051464,89233.0,89232.0,0.31727101]
[1769303257476,0.04051464,89233.0,89232.0,0.3063328]
[1769303258240,0.03,89244.0,89232.0,0.3063328]
[1769303258396,0.03,89242.0,89232.0,0.3063328]
[1769303259426,0.03,89241.0,89232.0,0.3063328]
[1769303260287,0.03,89240.0,89232.0,0.3063328]
[1769303260938,0.03,89240.0,89232.0,0.29174852]
[1769303261323,0.03,89244.0,89232.0,0.29174852]
[1769303261598,0.03,89242.0,89232.0,0.29174852]
[1769303262418,0.03,89241.0,89232.0,0.29174852]
[1769303263538,0.03,89240.0,89232.0,0.29174852]
[1769303264727,0.03,89239.0,89232.0,0.29174852]
[1769303265868,0.03,89238.0,89232.0,0.29174852]
[1769303266574,0.03,89238.0,89232.0,0.28445638]
[1769303266977,0.03,89237.0,89232.0,0.2698721]
[1769303267345,0.03,89237.0,89232.0,0.25893389]
[1769303267979,0.03,89244.0,89232.0,0.25893389]
[1769303270285,0.03,89242.0,89232.0,0.25893389]
[1769303270537,0.03,89240.0,89232.0,0.25893389]
[1769303270727,0.03,89238.0,89232.0,0.25893389]
[1769303270965,0.03,89236.0,89232.0,0.25893389]
[1769303271074,0.03,89234.0,89232.0,0.25893389]
[1769303271300,0.32127904,89247.0,89232.0,0.60227206]
[1769303271301,0.04051568,89233.0,89232.0,0.60227206]
[1769303271747,0.04051585,89233.0,89232.0,0.60227206]
[1769303273100,0.04051585,89233.0,89223.0,0.29955217]
[1769303273283,0.03,89231.0,89227.0,0.34333817]
[1769303273508,0.03,89229.0,89228.0,0.68754378]
[1769303273741,0.04051585,89229.0,89228.0,0.67519346]
[1769303275809,0.01051652,89229.0,89228.0,0.67519346]
[1769303276015,0.00903883,89246.0,89226.0,0.01120749]
[1769303276300,0.00903883,89246.0,89230.0,0.63141574]
[1769303276526,0.00903883,89246.0,89231.0,0.01218218]
[1769303276941,0.03,89245.0,89231.0,0.01218218]
[1769303277539,0.03,89243.0,89231.0,0.01124397]
[1769303278896,0.03,89243.0,89230.0,0.62802529]
[1769303280111,0.08963312,89252.0,89235.0,0.34333817]
[1769303280299,0.03362062,89251.0,89237.0,0.67519346]
[1769303280903,0.08963312,89252.0,89237.0,0.67519346]
[1769303281127,0.03,89251.0,89237.0,0.67519346]
[1769303282171,0.03,89250.0,89237.0,0.67519346]
[1769303283334,0.03,89249.0,89237.0,0.67519346]
[1769303283736,0.03,89249.0,89240.0,0.67237978]
[1769303284403,0.03,89248.0,89240.0,0.67237978]
[1769303285000,0.03,89248.0,89240.0,0.66050401]
[1769303285412,0.03,89247.0,89240.0,0.66050401]
[1769303286487,0.03,89246.0,89240.0,0.66050401]
[1769303287546,0.03,89245.0,89240.0,0.64956624]
[1769303288166,0.03,89243.0,89240.0,0.64956624]
[1769303288480,0.03,89241.0,89240.0,0.64956624]
[1769303288714,0.04051236,89241.0,89240.0,0.64956624]
[1769303291033,0.04051236,89241.0,89240.0,0.63498255]
[1769303295858,0.04051117,89241.0,89240.0,0.63498255]
[1769303296069,0.04051116,89241.0,89240.0,0.63498255]
[1769303296470,0.04051115,89241.0,89240.0,0.63498255]
[1769303296626,0.01051115,89241.0,89232.0,0.01120674]
[1769303296828,0.0001496,89255.0,89233.0,0.08878446]
[1769303297028,0.03,89253.0,89234.0,0.01120649]
[1769303297252,0.03,89253.0,89240.0,0.28073559]
[1769303297653,0.03,89253.0,89243.0,0.28802742]
[1769303297891,0.0001496,89255.0,89243.0,0.28802742]
[1769303298413,0.0001496,89255.0,89246.0,0.30532661]
[1769303298553,0.0001496,89255.0,89243.0,0.28802742]
[1769303298762,0.0001496,89255.0,89243.0,0.29923278]
[1769303298961,0.0001496,89255.0,89246.0,0.35574722]
[1769303299200,0.0001496,89255.0,89249.0,0.30532661]
[1769303299381,0.0001496,89255.0,89244.0,0.06723091]
[1769303299382,0.0001496,89255.0,89252.0,0.34454224]
[1769303299589,0.0001496,89255.0,89252.0,0.64986885]
[1769303300745,0.00021353,89255.0,89252.0,0.64986885]
[1769303307990,0.00021353,89255.0,89252.0,0.64893292]
[1769303308902,0.03,89253.0,89252.0,0.64893292]
[1769303309096,0.01048614,89253.0,89252.0,0.64893292]
[1769303310031,0.04048614,89253.0,89252.0,0.64893292]
[1769303310352,0.00021353,89255.0,89245.0,0.0112051]
[1769303310553,0.00021353,89255.0,89246.0,0.0214302]
[1769303310805,0.00021353,89255.0,89254.0,0.64065896]
[1769303311046,0.00021353,89255.0,89254.0,0.63065896]
[1769303312335,0.00021353,89255.0,89254.0,0.62336837]
[1769303313374,0.00021353,89255.0,89245.0,0.34247405]
[1769303313565,0.00021353,89255.0,89248.0,0.30273997]
[1769303313776,0.00021353,89255.0,89249.0,0.02192266]
[1769303322370,0.03,89253.0,89249.0,0.02192266]
[1769303322683,0.03,89251.0,89250.0,0.66713643]
[1769303322874,0.0104965,89251.0,89250.0,0.64427811]
[1769303323668,0.35223826,89267.0,89250.0,0.64427811]
[1769303323862,0.35271374,89267.0,89250.0,0.93230553]
[1769303324068,0.35271374,89267.0,89251.0,0.00834207]
[1769303324892,0.03,89265.0,89251.0,0.00834207]
[1769303325093,0.05601409,89264.0,89251.0,0.00834207]
[1769303325298,0.03,89262.0,89251.0,0.00834207]
[1769303325617,0.03,89260.0,89250.0,0.62956556]
[1769303326613,0.03,89261.0,89250.0,0.62956556]
[1769303327425,0.01120297,89262.0,89250.0,0.62956556]
[1769303327627,0.01097012,89262.0,89250.0,0.28802742]
[1769303330156,0.06721753,89263.0,89250.0,0.28802742]
[1769303330361,0.04120297,89262.0,89250.0,0.28802742]
[1769303330657,0.03,89262.0,89250.0,0.28802742]
[1769303330806,0.06721753,89263.0,89250.0,0.28802742]
[1769303331003,0.01120297,89262.0,89250.0,0.28802742]
[1769303331584,0.04120297,89262.0,89250.0,0.28802742]
[1769303331908,0.03,89260.0,89250.0,0.28802742]
[1769303332754,0.03,89260.0,89250.0,0.27974743]
[1769303332984,0.03,89259.0,89250.0,0.28802742]
[1769303333946,0.03,89258.0,89250.0,0.28802742]
[1769303335020,0.03,89257.0,89250.0,0.28802742]
[1769303335218,0.06721748,89263.0,89250.0,0.28802742]
[1769303335584,0.13387497,89262.0,89250.0,0.28802742]
[1769303335782,0.01051473,89261.0,89250.0,0.28802742]
[1769303336020,0.03,89259.0,89250.0,0.28802742]
[1769303336264,0.03,89257.0,89250.0,0.28802742]
[1769303336386,0.03,89255.0,89250.0,0.28802742]
[1769303336590,0.03,89253.0,89250.0,0.28802742]
[1769303336785,0.01051473,89252.0,89250.0,0.28802742]
[1769303337036,0.00051473,89251.0,89250.0,0.28802742]
[1769303337239,0.12336009,89264.0,89250.0,0.28802742]
[1769303337425,0.11215737,89264.0,89250.0,0.28802742]
[1769303337805,0.00051473,89263.0,89250.0,0.28802742]
[1769303338145,0.00051473,89263.0,89251.0,0.02073451]
[1769303342987,0.00874125,89263.0,89251.0,0.01250799]
[1769303344006,0.00874125,89263.0,89250.0,0.28789828]
[1769303344651,0.0199441,89263.0,89250.0,0.28789828]
[1769303344781,0.12089862,89263.0,89250.0,0.28789828]
[1769303344991,0.11215737,89262.0,89250.0,0.28789828]
[1769303345207,0.01120272,89264.0,89250.0,0.28789828]
[1769303345208,0.12089862,89261.0,89250.0,0.28789828]
[1769303345467,0.11215737,89260.0,89250.0,0.28789828]
[1769303345659,0.12089862,89259.0,89250.0,0.28789828]
[1769303345859,0.11215737,89258.0,89251.0,0.0135871]
[1769303346065,0.00874125,89264.0,89251.0,0.0135871]
[1769303346267,0.12089867,89264.0,89251.0,0.0135871]
[1769303346840,0.03,89263.0,89251.0,0.0135871]
[1769303347037,0.03,89261.0,89251.0,0.0135871]
[1769303347238,0.03,89259.0,89251.0,0.0135871]
[1769303347508,0.32223826,89265.0,89251.0,0.0135871]
[1769303347509,0.03,89257.0,89251.0,0.0135871]
[1769303348060,0.03,89257.0,89248.0,0.0135871]
[1769303348759,0.03,89256.0,89248.0,0.0135871]
[1769303349168,0.03,89254.0,89248.0,0.0135871]
[1769303349377,0.03,89252.0,89249.0,0.30065285]
[1769303349675,0.04051475,89251.0,89250.0,0.65119204]
[1769303349881,0.04051475,89251.0,89250.0,0.63758448]
[1769303352794,0.04051475,89251.0,89250.0,0.62664855]
[1769303356344,0.03,89259.0,89250.0,0.62664855]
[1769303356589,0.03874125,89259.0,89251.0,0.01335804]
[1769303358048,0.03,89258.0,89251.0,0.01335804]
[1769303359504,0.03,89257.0,89251.0,0.01335804]
[1769303360357,0.03,89256.0,89251.0,0.01335804]
[1769303361187,0.03,89256.0,89251.0,0.34350225]
[1769303361417,0.03,89255.0,89251.0,0.33014421]
[1769303361625,0.03,89255.0,89252.0,0.01340273]
[1769303362591,0.03,89254.0,89252.0,0.01340273]
[1769303362986,0.03,89254.0,89251.0,0.33014421]
[1769303363198,0.03,89254.0,89252.0,0.002755]
[1769303363651,0.03,89253.0,89252.0,0.002755]
[1769303364173,0.01940716,89264.0,89252.0,0.002755]
[1769303364391,0.00047548,89267.0,89257.0,0.31465291]
[1769303364616,0.00047548,89267.0,89258.0,0.31556344]
[1769303364835,0.03,89266.0,89258.0,0.31556344]
[1769303365834,0.03,89265.0,89258.0,0.31556344]
[1769303366873,0.00047548,89267.0,89258.0,0.31556344]
[1769303368460,0.03,89265.0,89258.0,0.31556344]
[1769303368666,0.03,89263.0,89258.0,0.31556344]
[1769303368817,0.00047548,89267.0,89258.0,0.63021635]
[1769303368818,0.03,89261.0,89258.0,0.63021635]
[1769303369017,0.01050935,89260.0,89258.0,0.63021635]
[1769303369195,0.00050935,89259.0,89258.0,0.63021635]
[1769303370968,0.00047548,89267.0,89258.0,0.63021635]
[1769303372155,0.00047548,89267.0,89259.0,0.00262797]
[1769303372341,0.00047548,89267.0,89260.0,0.63750699]
[1769303372581,0.00047548,89267.0,89261.0,0.33014421]
[1769303372972,0.00047548,89267.0,89261.0,0.31920925]
[1769303376432,0.00047548,89267.0,89262.0,0.00260161]
[1769303378471,0.70662852,89277.0,89262.0,0.00260161]
[1769303378674,0.70670304,89277.0,89262.0,0.00260161]
[1769303378858,0.01120121,89276.0,89262.0,0.00260161]
[1769303379058,0.03,89274.0,89262.0,0.00260161]
[1769303379263,0.03,89274.0,89261.0,0.31920925]
[1769303379905,0.04120146,89274.0,89261.0,0.31920925]
[1769303380109,0.03,89274.0,89262.0,0.00125698]
[1769303380358,0.03,89274.0,89262.0,0.00200205]
[1769303380538,0.03,89273.0,89262.0,0.00200205]
[1769303381502,0.03,89272.0,89262.0,0.00200205]
[1769303382714,0.03,89276.0,89262.0,0.00200205]
[1769303382921,0.03,89274.0,89262.0,0.00200205]
[1769303383127,0.03,89272.0,89262.0,0.00200205]
[1769303383331,0.03,89270.0,89262.0,0.00200205]
[1769303383646,0.03,89268.0,89262.0,0.00200205]
[1769303383847,0.03,89266.0,89262.0,0.00200205]
[1769303384036,0.03,89264.0,89262.0,0.00200205]
[1769303384395,0.03084092,89263.0,89262.0,0.00200205]
[1769303386019,0.03084092,89263.0,89262.0,0.35364758]
[1769303386257,0.03084092,89263.0,89262.0,0.35164553]
[1769303387254,0.03084092,89263.0,89262.0,0.34435559]
[1769303388467,0.03084092,89263.0,89262.0,0.33342067]
[1769303389154,0.03,89275.0,89262.0,0.33342067]
[1769303389297,0.03,89275.0,89263.0,0.01100837]
[1769303390099,0.03,89274.0,89263.0,0.01100837]
[1769303390899,0.34811476,89277.0,89263.0,0.01100837]
[1769303391086,0.35931585,89277.0,89263.0,0.01100837]
[1769303391287,0.03,89276.0,89263.0,0.01100837]
[1769303397884,0.03,89276.0,89263.0,0.01716755]
[1769303398343,0.03,89275.0,89263.0,0.01555118]
[1769303398544,0.03,89275.0,89260.0,0.28789828]
[1769303398751,0.03,89275.0,89263.0,0.35164553]
[1769303398971,0.03,89275.0,89264.0,0.00726214]
[1769303399382,7.452e-05,89277.0,89264.0,0.00701646]
[1769303400204,7.452e-05,89277.0,89265.0,0.35164553]
[1769303401129,0.03,89275.0,89265.0,0.35164553]
[1769303401301,7.452e-05,89277.0,89265.0,0.35164553]
[1769303401302,0.03,89273.0,89265.0,0.35164553]
[1769303401608,0.03,89271.0,89265.0,0.35164553]
[1769303401804,0.03,89269.0,89265.0,0.35164553]
[1769303402104,0.03,89267.0,89250.0,0.28797235]
[1769303402307,0.03,89264.0,89251.0,0.00794783]
[1769303402511,0.03,89262.0,89250.0,0.00921796]
[1769303402649,0.03,89260.0,89250.0,0.0001496]
[1769303402905,0.03,89258.0,89250.0,0.0001496]
[1769303403110,0.03,89256.0,89250.0,0.0001496]
[1769303403315,0.03,89254.0,89251.0,0.35025044]
[1769303403618,0.03,89252.0,89251.0,0.65846234]
[1769303403819,0.04051216,89252.0,89251.0,0.65846234]
[1769303406692,0.03,89268.0,89251.0,0.3082119]
[1769303407031,0.34642837,89268.0,89251.0,0.3082119]
[1769303411531,0.34642837,89268.0,89251.0,0.65846234]
[1769303413891,0.34642837,89268.0,89252.0,0.34470551]
[1769303414093,0.34642837,89268.0,89252.0,0.65203834]
[1769303415219,0.0985626,89268.0,89252.0,0.65203834]
[1769303418728,0.01051108,89267.0,89252.0,0.65203834]
[1769303418930,0.04051108,89266.0,89252.0,0.65203834]
[1769303419131,0.03,89264.0,89252.0,0.65203834]
[1769303419355,0.03,89262.0,89252.0,0.65203834]
[1769303419687,0.03,89260.0,89252.0,0.65203834]
[1769303419896,0.03,89258.0,89252.0,0.65203834]
[1769303420103,0.03,89256.0,89250.0,0.28797235]
[1769303420258,0.03,89256.0,89252.0,0.34470551]
[1769303420617,0.03,89256.0,89250.0,0.28797235]
[1769303420842,0.03,89254.0,89251.0,0.65203834]
[1769303421014,0.03,89254.0,89250.0,0.28797235]
[1769303421164,0.03,89254.0,89252.0,0.34470551]
[1769303421358,0.04051082,89253.0,89252.0,0.65203834]
[1769303423717,0.04051082,89253.0,89252.0,0.65169759]
[1769303424477,0.09861047,89268.0,89250.0,0.0001496]
[1769303424661,0.03,89267.0,89251.0,0.65203834]
[1769303425277,0.03,89267.0,89251.0,0.34470551]
[1769303425423,0.03,89267.0,89252.0,0.30733283]
[1769303427201,0.03,89267.0,89252.0,0.65203834]
[1769303434706,0.03,89266.0,89252.0,0.65380688]
[1769303435757,0.03,89268.0,89252.0,0.65380688]
[1769303436565,0.03,89266.0,89252.0,0.65380688]
[1769303436760,0.03,89264.0,89252.0,0.65380688]
[1769303436990,0.03,89262.0,89252.0,0.65380688]
[1769303437190,0.03,89260.0,89252.0,0.65380688]
[1769303437368,0.03,89258.0,89252.0,0.65380688]
[1769303437564,0.03,89256.0,89250.0,0.28797235]
[1769303437772,0.03,89254.0,89253.0,0.64304769]
[1769303437998,0.04051192,89254.0,89253.0,0.64304769]
[1769303440079,0.03,89268.0,89253.0,0.64304769]
[1769303441279,0.03,89267.0,89253.0,0.64304769]
[1769303443245,0.03,89266.0,89250.0,0.0001496]
[1769303443478,0.21091449,89266.0,89250.0,0.0001496]
[1769303443664,0.03,89264.0,89250.0,0.0001496]
[1769303444771,0.04120259,89265.0,89250.0,0.0001496]
[1769303444949,0.03,89265.0,89250.0,0.0001496]
[1769303445334,0.03,89263.0,89250.0,0.0001496]
[1769303445577,0.15490166,89261.0,89250.0,0.0001496]
[1769303446727,0.03,89261.0,89250.0,0.0001496]
[1769303447359,0.03,89263.0,89250.0,0.0001496]
[1769303448418,0.05601174,89267.0,89250.0,0.0001496]
[1769303448620,0.05601319,89265.0,89250.0,0.0001496]
[1769303449367,0.06721578,89265.0,89250.0,0.0001496]
[1769303449578,0.04120272,89264.0,89250.0,0.0001496]
[1769303450050,0.03,89264.0,89250.0,0.0001496]
[1769303451071,0.01120297,89262.0,89250.0,0.0001496]
[1769303451269,0.03,89262.0,89250.0,0.0001496]
[1769303452043,0.03,89260.0,89250.0,0.0001496]
[1769303452255,0.03,89258.0,89250.0,0.0001496]
[1769303452458,0.03,89256.0,89250.0,0.0001496]
[1769303452677,0.03,89254.0,89250.0,0.0001496]
[1769303452888,0.03,89252.0,89250.0,0.0001496]
[1769303453125,0.03900666,89251.0,89250.0,0.0001496]
[1769303454172,0.03900666,89251.0,89245.0,0.64304769]
[1769303454173,0.03900666,89251.0,89245.0,0.33394632]
[1769303454462,0.03,89259.0,89245.0,0.33394632]
[1769303455255,0.03,89259.0,89244.0,0.06221235]
[1769303456550,0.03,89258.0,89244.0,0.42041154]
[1769303456731,0.03,89258.0,89244.0,0.72951291]
[1769303457137,0.03,89258.0,89245.0,0.35819919]
[1769303457503,0.03,89257.0,89245.0,0.35819919]
[1769303458648,0.03,89256.0,89245.0,0.35819919]
[1769303459681,0.03,89260.0,89245.0,0.35819919]
[1769303462642,0.03,89260.0,89245.0,0.66730056]
[1769303463467,0.03,89260.0,89246.0,0.02087023]
[1769303463657,0.03,89259.0,89246.0,0.38131814]
[1769303463806,0.03,89259.0,89246.0,0.33672384]
[1769303464149,0.03,89259.0,89250.0,0.33672384]
[1769303464353,0.03,89259.0,89251.0,0.02201548]
[1769303464816,0.03,89258.0,89251.0,0.02201548]
[1769303465206,0.03,89256.0,89252.0,0.69717175]
[1769303465413,0.03,89254.0,89253.0,0.35874661]
[1769303465602,0.04050153,89254.0,89253.0,0.32578789]
[1769303466671,0.04050153,89254.0,89253.0,0.6862358]
[1769303467082,0.03361357,89265.0,89254.0,0.36044791]
[1769303467083,0.03,89264.0,89254.0,0.36044791]
[1769303467267,0.03,89264.0,89255.0,0.71896974]
[1769303467471,0.03,89264.0,89255.0,0.69672317]
[1769303468249,0.03,89263.0,89255.0,0.69672317]
[1769303469159,0.03,89262.0,89255.0,0.69672317]
[1769303470241,0.03,89261.0,89255.0,0.69672317]
[1769303471272,0.03,89264.0,89255.0,0.69672317]
[1769303475264,0.11202758,89265.0,89255.0,0.69672317]
[1769303475451,0.03,89263.0,89255.0,0.69672317]
[1769303475675,0.11202758,89265.0,89255.0,0.68849663]
[1769303475825,0.11202758,89264.0,89255.0,0.36044791]
[1769303475998,0.11202758,89263.0,89255.0,0.36044791]
[1769303476199,0.11202758,89262.0,89255.0,0.36044791]
[1769303476502,0.03,89265.0,89255.0,0.36044791]
[1769303476720,0.14208656,89265.0,89255.0,0.36044791]
[1769303476935,0.03,89263.0,89255.0,0.36044791]
[1769303477147,0.14208656,89263.0,89255.0,0.36044791]
[1769303477387,0.03,89261.0,89255.0,0.36044791]
[1769303477694,0.14208656,89261.0,89255.0,0.36044791]
[1769303477929,0.03,89261.0,89255.0,0.36044791]
[1769303478587,0.03,89260.0,89255.0,0.36044791]
[1769303479167,0.03,89258.0,89255.0,0.36044791]
[1769303479366,0.01050928,89257.0,89255.0,0.36044791]
[1769303479576,0.00050928,89256.0,89255.0,0.36044791]
[1769303481481,0.03361357,89266.0,89255.0,0.36044791]
[1769303481660,0.30147033,89270.0,89255.0,0.36044791]
[1769303482067,0.3350839,89270.0,89255.0,0.36044791]
[1769303482387,0.30147033,89270.0,89255.0,0.36044791]
[1769303482680,0.10082636,89269.0,89255.0,0.36044791]
[1769303482891,0.04481566,89269.0,89255.0,0.36044791]
[1769303483047,0.06721263,89269.0,89255.0,0.36044791]
[1769303483248,0.01120222,89268.0,89255.0,0.36044791]
[1769303483573,0.04481579,89268.0,89255.0,0.36044791]
[1769303484003,0.03361357,89268.0,89255.0,0.36044791]
[1769303484569,0.06721263,89269.0,89255.0,0.36044791]
[1769303484769,0.04481579,89268.0,89255.0,0.36044791]
[1769303484973,0.03361357,89268.0,89255.0,0.36044791]
[1769303485171,0.10082696,89268.0,89255.0,0.36044791]
[1769303485374,0.04481579,89268.0,89255.0,0.36044791]
[1769303485578,0.01120222,89268.0,89250.0,0.341636]
[1769303485774,0.03361357,89267.0,89251.0,0.022128]
[1769303485998,0.03361357,89267.0,89251.0,0.36946835]
[1769303486332,0.03361357,89267.0,89251.0,0.68897635]
[1769303487277,0.03361357,89267.0,89252.0,0.02101164]
[1769303489363,0.03,89266.0,89252.0,0.02101164]
[1769303489594,0.03,89266.0,89252.0,0.36385492]
[1769303489722,0.03,89266.0,89252.0,0.34284328]
[1769303489921,0.06361357,89266.0,89253.0,0.02213181]
[1769303491508,0.03,89264.0,89253.0,0.02213181]
[1769303491708,0.03,89262.0,89253.0,0.02213181]
[1769303491854,0.03,89260.0,89253.0,0.02213181]
[1769303492058,0.03,89258.0,89254.0,0.32444667]
[1769303492244,0.03,89256.0,89255.0,0.37640633]
[1769303492460,0.03,89256.0,89255.0,0.35407536]
[1769303492461,0.04051426,89256.0,89255.0,0.35407536]
[1769303495506,0.04051426,89256.0,89255.0,0.34313944]
[1769303499379,0.04051426,89256.0,89255.0,0.33584883]
[1769303500353,0.04051426,89256.0,89255.0,0.33511859]
[1769303500554,0.04051426,89256.0,89253.0,0.35685564]
[1769303500756,0.04051426,89255.0,89254.0,0.36432859]
[1769303500958,0.04051426,89255.0,89254.0,0.35685564]
[1769303503536,0.0405147,89255.0,89254.0,0.35685564]
[1769303505617,0.0405147,89255.0,89254.0,0.34591972]
[1769303509910,0.04051468,89255.0,89254.0,0.34591972]
[1769303510590,0.04051468,89255.0,89250.0,0.32468806]
[1769303510790,0.03,89253.0,89251.0,0.35685564]
[1769303510986,0.04051468,89252.0,89251.0,0.35685564]
[1769303514320,0.04051468,89252.0,89251.0,0.34956502]
[1769303515367,0.04051457,89252.0,89251.0,0.34956502]
[1769303515576,0.04051457,89252.0,89251.0,0.33862909]
[1769303518421,0.04051457,89252.0,89251.0,0.66331715]
[1769303525633,0.04051457,89252.0,89251.0,0.65238121]
[1769303529267,0.04051457,89252.0,89251.0,0.64509058]
[1769303537368,0.04051457,89252.0,89251.0,0.63415464]
[1769303539402,0.04051457,89252.0,89251.0,0.30946658]
[1769303541793,0.04051457,89252.0,89246.0,0.30661476]
[1769303542051,0.03,89250.0,89249.0,0.34984964]
[1769303542252,0.04051457,89250.0,89249.0,0.34984964]
[1769303543276,0.04051457,89250.0,89249.0,0.35032512]
[1769303544325,0.04051457,89250.0,89249.0,0.34303449]
[1769303547387,0.03,89261.0,89249.0,0.34303449]
[1769303547576,0.01465796,89262.0,89249.0,0.34303449]
[1769303547577,0.03,89259.0,89249.0,0.34303449]
[1769303547768,0.03,89257.0,89249.0,0.34303449]
[1769303548770,0.03,89257.0,89250.0,0.00558202]
[1769303548978,0.03,89260.0,89250.0,0.00558202]
[1769303549182,0.03,89258.0,89250.0,0.00558202]
[1769303550127,0.11115324,89267.0,89250.0,0.02240896]
[1769303550346,0.03,89265.0,89250.0,0.02240896]
[1769303550575,0.09669058,89265.0,89249.0,0.34303449]
[1769303550826,0.10789317,89265.0,89249.0,0.34303449]
[1769303551191,0.03,89263.0,89249.0,0.34303449]
[1769303552001,0.03,89263.0,89250.0,0.02212669]
[1769303552202,0.03,89264.0,89250.0,0.02212669]
[1769303553562,0.03,89263.0,89250.0,0.02212669]
[1769303553813,0.03,89263.0,89249.0,0.34303449]
[1769303556362,0.03,89248.0,89244.0,0.06221235]
[1769303556554,0.03,89248.0,89244.0,0.06227628]
[1769303557308,0.03,89247.0,89244.0,0.06227628]
[1769303558446,0.03,89246.0,89244.0,0.06227628]
[1769303558834,0.03,89246.0,89244.0,6.393e-05]
[1769303559258,0.04051154,89245.0,89241.0,0.0001496]
[1769303559433,0.03,89243.0,89241.0,0.0001496]
[1769303559635,0.04051154,89242.0,89241.0,0.0001496]
[1769303560165,0.06158213,89255.0,89241.0,0.0001496]
[1769303560764,0.03,89254.0,89241.0,0.0001496]
[1769303561900,0.10789455,89254.0,89241.0,0.0001496]
[1769303562100,0.09669058,89254.0,89241.0,0.0001496]
[1769303565897,0.10789455,89254.0,89241.0,0.0001496]
[1769303566300,0.09669058,89254.0,89241.0,0.0001496]
[1769303567191,0.10789455,89254.0,89241.0,0.0001496]
[1769303567426,0.09669058,89254.0,89241.0,0.0001496]
[1769303567641,0.03,89252.0,89241.0,0.0001496]
[1769303568880,0.03,89253.0,89241.0,0.0001496]
[1769303570267,0.1420495,89253.0,89241.0,0.0001496]
[1769303572052,0.03,89251.0,89241.0,0.0001496]
[1769303572258,0.03,89249.0,89241.0,0.0001496]
[1769303572476,0.03,89247.0,89241.0,0.0001496]
[1769303572675,0.03,89245.0,89241.0,0.0001496]
[1769303572887,0.03,89243.0,89241.0,0.0001496]
[1769303573087,0.03050413,89242.0,89241.0,0.0001496]
[1769303574340,0.03050413,89242.0,89235.0,0.29649185]
[1769303574558,0.0112036,89257.0,89232.0,0.03376528]
[1769303574559,0.0301496,89241.0,89232.0,0.0001496]
[1769303574762,0.03023479,89241.0,89232.0,0.0001496]
[1769303574970,0.09746884,89241.0,89232.0,0.0001496]
[1769303575168,0.32135092,89238.0,89232.0,0.0001496]
[1769303575335,0.09178189,89239.0,89232.0,0.0001496]
[1769303575336,0.32342177,89239.0,89232.0,0.0001496]
[1769303575531,0.32342177,89239.0,89220.0,0.0191132]
[1769303575878,0.31264085,89239.0,89220.0,0.28791238]
[1769303576080,0.30832297,89239.0,89220.0,0.28791238]
[1769303576318,0.03,89238.0,89220.0,0.28791238]
[1769303576540,0.03,89238.0,89221.0,0.03362141]
[1769303576775,0.03,89238.0,89220.0,0.28791238]
[1769303576983,0.03,89238.0,89214.0,0.0001496]
[1769303576984,0.03,89220.0,89214.0,0.0001496]
[1769303577620,0.03,89218.0,89214.0,0.0001496]
[1769303578073,0.09725083,89219.0,89214.0,0.0001496]
[1769303578249,0.32125954,89216.0,89214.0,7.48e-05]
[1769303578446,0.31043569,89216.0,89214.0,7.48e-05]
[1769303578814,0.30914954,89216.0,89214.0,7.48e-05]
[1769303579044,0.30683671,89216.0,89214.0,7.48e-05]
[1769303579243,0.30011148,89216.0,89205.0,0.0001496]
[1769303579444,0.09725028,89219.0,89205.0,0.0001496]
[1769303579445,0.04120837,89219.0,89205.0,0.0001496]
[1769303579646,0.03240391,89219.0,89205.0,0.0001496]
[1769303579855,0.01677693,89219.0,89205.0,0.0001496]
[1769303580286,0.01561621,89219.0,89205.0,0.0001496]
[1769303580505,0.0021779,89219.0,89205.0,0.0001496]
[1769303580724,0.03,89219.0,89205.0,0.0001496]
[1769303581019,0.03,89219.0,89204.0,0.31529406]
[1769303581020,0.03,89217.0,89204.0,0.31529406]
[1769303581195,0.03,89217.0,89205.0,0.0001557]
[1769303581606,0.01120837,89219.0,89205.0,0.0001557]
[1769303581786,0.47124062,89220.0,89205.0,0.0001557]
[1769303581981,0.03,89219.0,89205.0,0.0001557]
[1769303582413,0.03,89219.0,89206.0,0.31529406]
[1769303582585,0.05604762,89225.0,89205.0,0.0001557]
[1769303582586,0.05603429,89232.0,89209.0,0.28791238]
[1769303582923,0.03,89230.0,89214.0,0.33242935]
[1769303583138,0.03,89228.0,89215.0,0.02014134]
[1769303583829,0.03,89228.0,89214.0,0.33242935]
[1769303585003,0.03,89228.0,89211.0,0.0001557]
[1769303585004,0.18249554,89227.0,89216.0,0.33242935]
[1769303585205,0.32342177,89233.0,89218.0,0.33242935]
[1769303585206,0.03,89225.0,89218.0,0.33242935]
[1769303586279,0.03,89224.0,89218.0,0.33242935]
[1769303587534,0.03,89223.0,89218.0,0.34785364]
[1769303587748,0.03,89223.0,89219.0,0.33242935]
[1769303588559,0.03,89222.0,89219.0,0.33242935]
[1769303589445,0.03,89225.0,89219.0,0.33242935]
[1769303590936,0.03,89224.0,89219.0,0.34785364]
[1769303591093,0.03,89224.0,89220.0,0.33242935]
[1769303591300,0.04484,89235.0,89221.0,0.34785364]
[1769303591586,0.17216,89234.0,89224.0,0.33242935]
[1769303591756,0.17216,89234.0,89226.0,0.33242935]
[1769303591964,0.03,89233.0,89226.0,0.33242935]
[1769303597211,0.03,89231.0,89226.0,0.33242935]
[1769303597395,0.03,89229.0,89226.0,0.33242935]
[1769303597594,0.01046935,89228.0,89226.0,0.33242935]
[1769303597875,0.00830146,89227.0,89226.0,0.33242935]
[1769303599368,0.00830146,89227.0,89226.0,0.32148932]
[1769303603465,0.11186546,89233.0,89226.0,0.32148932]
[1769303604355,0.11186546,89233.0,89226.0,0.30690262]
[1769303604518,0.28402546,89232.0,89226.0,0.30690262]
[1769303604849,0.11186546,89231.0,89226.0,0.30690262]
[1769303607660,0.03,89230.0,89226.0,0.30690262]
[1769303609362,0.03,89230.0,89226.0,0.29866924]
[1769303609781,0.03,89228.0,89226.0,0.29826511]